[Event "*** Titled Tuesday Blitz"]
[Site "Chess.com"]
[Date "2020.04.14"]
[Round "4"]
[White "GusKan67"]
[Black "queen_iryna"]
[Result "1-0"]
[WhiteElo "2419"]
[BlackElo "2207"]
[TimeControl "180+1"]
[EndTime "10:35:47 PDT"]
[Termination "GusKan67 won by resignation"]

1. d4 {[%clk 0:03:00.9]} 1... d5 {[%clk 0:02:59]} 2. Nf3 {[%clk 0:02:59.2]} 2...
Nf6 {[%clk 0:02:58.4]} 3. c4 {[%clk 0:02:59]} 3... c6 {[%clk 0:02:57.8]} 4. e3
{[%clk 0:02:58.9]} 4... Bf5 {[%clk 0:02:56.3]} 5. Nc3 {[%clk 0:02:58.7]} 5... e6
{[%clk 0:02:56.1]} 6. Nh4 {[%clk 0:02:55.6]} 6... Bg6 {[%clk 0:02:55.8]} 7. Qb3
{[%clk 0:02:55]} 7... Qc7 {[%clk 0:02:51.3]} 8. Be2 {[%clk 0:02:48.3]} 8... Nbd7
{[%clk 0:02:51.1]} 9. Bd2 {[%clk 0:02:37.2]} 9... Bd6 {[%clk 0:02:50.8]} 10. c5
{[%clk 0:02:35.3]} 10... Be7 {[%clk 0:02:50.2]} 11. Nxg6 {[%clk 0:02:32.3]}
11... hxg6 {[%clk 0:02:50]} 12. f4 {[%clk 0:02:32.7]} 12... g5 {[%clk
0:02:44.3]} 13. fxg5 {[%clk 0:02:17.5]} 13... Rxh2 {[%clk 0:02:42.9]} 14. Rxh2
{[%clk 0:02:14.8]} 14... Qxh2 {[%clk 0:02:41.7]} 15. gxf6 {[%clk 0:02:14]} 15...
Qg3+ {[%clk 0:02:26.1]} 16. Kd1 {[%clk 0:02:11.5]} 16... Nxf6 {[%clk 0:02:02.9]}
17. Qxb7 {[%clk 0:02:08.5]} 17... Rb8 {[%clk 0:01:59.1]} 18. Qxc6+ {[%clk
0:01:59.1]} 18... Nd7 {[%clk 0:01:59.2]} 19. Bb5 {[%clk 0:01:49.1]} 1-0

[Event "*** Titled Tuesday Blitz"]
[Site "Chess.com"]
[Date "2020.04.14"]
[Round "4"]
[White "ReyesBraulio"]
[Black "Medvezhlo"]
[Result "0-1"]
[WhiteElo "2173"]
[BlackElo "2447"]
[TimeControl "180+1"]
[EndTime "10:35:48 PDT"]
[Termination "Medvezhlo won by resignation"]

1. d4 {[%clk 0:03:00.9]} 1... d5 {[%clk 0:02:59.6]} 2. f4 {[%clk 0:03:00.5]}
2... c5 {[%clk 0:02:55.7]} 3. e3 {[%clk 0:03:00.6]} 3... g6 {[%clk 0:02:54.2]}
4. Nf3 {[%clk 0:02:59.7]} 4... Bg7 {[%clk 0:02:54.7]} 5. c3 {[%clk 0:02:59.4]}
5... Nf6 {[%clk 0:02:55.2]} 6. Bd3 {[%clk 0:02:59]} 6... O-O {[%clk 0:02:55.6]}
7. O-O {[%clk 0:02:58.9]} 7... b6 {[%clk 0:02:56.1]} 8. Qe2 {[%clk 0:02:57.4]}
8... Bb7 {[%clk 0:02:55.7]} 9. Ne5 {[%clk 0:02:56.5]} 9... Nbd7 {[%clk
0:02:55.5]} 10. Nd2 {[%clk 0:02:56.3]} 10... Ne8 {[%clk 0:02:55.1]} 11. Qg4
{[%clk 0:02:50.5]} 11... Ndf6 {[%clk 0:02:52]} 12. Qf3 {[%clk 0:02:47.6]} 12...
Nd6 {[%clk 0:02:52]} 13. g4 {[%clk 0:02:46.6]} 13... Nfe4 {[%clk 0:02:52.2]} 14.
g5 {[%clk 0:02:43.1]} 14... f6 {[%clk 0:02:51.5]} 15. gxf6 {[%clk 0:02:41]}
15... exf6 {[%clk 0:02:51.7]} 16. Ng4 {[%clk 0:02:40]} 16... Qe7 {[%clk
0:02:50.8]} 17. Nf2 {[%clk 0:02:33.1]} 17... Rae8 {[%clk 0:02:49]} 18. Bxe4
{[%clk 0:02:32.9]} 18... dxe4 {[%clk 0:02:46.3]} 19. Qg2 {[%clk 0:02:29.1]}
19... f5 {[%clk 0:02:45.8]} 20. Nh3 {[%clk 0:02:27]} 20... cxd4 {[%clk
0:02:40.1]} 21. cxd4 {[%clk 0:02:25.2]} 21... Rc8 {[%clk 0:02:38.7]} 22. Nb3
{[%clk 0:02:20.2]} 22... a5 {[%clk 0:02:35.5]} 23. a4 {[%clk 0:02:11.9]} 23...
Bd5 {[%clk 0:02:34.9]} 24. Ra3 {[%clk 0:02:08.4]} 24... Nc4 {[%clk 0:02:33.9]}
25. Ra1 {[%clk 0:02:05.9]} 25... Nxe3 {[%clk 0:02:33.8]} 26. Bxe3 {[%clk
0:02:05]} 26... Bxb3 {[%clk 0:02:34]} 27. Rac1 {[%clk 0:02:03.6]} 27... Bxa4
{[%clk 0:02:30.6]} 28. Qd2 {[%clk 0:01:56.5]} 28... Qb4 {[%clk 0:02:27.7]} 29.
Qxb4 {[%clk 0:01:50.8]} 29... axb4 {[%clk 0:02:27.8]} 30. Ng5 {[%clk 0:01:50.8]}
30... Bb3 {[%clk 0:02:25.9]} 31. Kf2 {[%clk 0:01:46.1]} 31... h6 {[%clk
0:02:25.6]} 32. Nh3 {[%clk 0:01:45.6]} 32... Rfd8 {[%clk 0:02:23.1]} 33. Rfd1
{[%clk 0:01:45]} 33... Bxd1 {[%clk 0:02:22.5]} 34. Rxd1 {[%clk 0:01:44.5]} 0-1

[Event "*** Titled Tuesday Blitz"]
[Site "Chess.com"]
[Date "2020.04.14"]
[Round "4"]
[White "kuba2006"]
[Black "WelshTiger"]
[Result "1-0"]
[WhiteElo "2463"]
[BlackElo "2277"]
[TimeControl "180+1"]
[EndTime "10:35:52 PDT"]
[Termination "kuba2006 won by resignation"]

1. e4 {[%clk 0:03:00.9]} 1... c5 {[%clk 0:02:59]} 2. Nf3 {[%clk 0:03:00.4]} 2...
Nc6 {[%clk 0:02:58.6]} 3. d4 {[%clk 0:03:00.5]} 3... cxd4 {[%clk 0:02:58.9]} 4.
Nxd4 {[%clk 0:03:01.4]} 4... Nf6 {[%clk 0:02:59]} 5. Nc3 {[%clk 0:03:01.2]} 5...
d6 {[%clk 0:02:59.7]} 6. f3 {[%clk 0:03:00.5]} 6... e5 {[%clk 0:02:56.5]} 7. Nb3
{[%clk 0:03:00.2]} 7... h6 {[%clk 0:02:56.1]} 8. Be3 {[%clk 0:02:58.9]} 8... Be7
{[%clk 0:02:54.1]} 9. Qd2 {[%clk 0:02:58]} 9... a5 {[%clk 0:02:23.1]} 10. a4
{[%clk 0:02:50.8]} 10... Be6 {[%clk 0:02:03.7]} 11. Nd5 {[%clk 0:02:48]} 11...
Bxd5 {[%clk 0:01:57]} 12. exd5 {[%clk 0:02:47.5]} 12... Nb4 {[%clk 0:01:57.5]}
13. Bb5+ {[%clk 0:02:46.6]} 13... Kf8 {[%clk 0:01:54.9]} 14. c4 {[%clk 0:02:38]}
14... Nd7 {[%clk 0:01:54.3]} 15. O-O {[%clk 0:02:33.9]} 15... Bg5 {[%clk
0:01:47.7]} 16. Bxg5 {[%clk 0:02:27.4]} 16... hxg5 {[%clk 0:01:47]} 17. Bxd7
{[%clk 0:02:27.1]} 17... Qxd7 {[%clk 0:01:44]} 18. Nxa5 {[%clk 0:02:25.9]} 18...
Nxd5 {[%clk 0:01:30.8]} 19. Qxd5 {[%clk 0:02:18.6]} 19... b6 {[%clk 0:01:13.8]}
20. Qxa8+ {[%clk 0:02:16.7]} 1-0

[Event "*** Titled Tuesday Blitz"]
[Site "Chess.com"]
[Date "2020.04.14"]
[Round "4"]
[White "TastyTablet"]
[Black "FCChelsea14"]
[Result "0-1"]
[WhiteElo "2573"]
[BlackElo "2810"]
[TimeControl "180+1"]
[EndTime "10:35:53 PDT"]
[Termination "FCChelsea14 won by resignation"]

1. e4 {[%clk 0:03:00.9]} 1... c6 {[%clk 0:02:59.7]} 2. d4 {[%clk 0:02:59.6]}
2... d5 {[%clk 0:02:59.9]} 3. exd5 {[%clk 0:03:00.5]} 3... cxd5 {[%clk
0:03:00.1]} 4. c4 {[%clk 0:03:00]} 4... Nf6 {[%clk 0:02:59.9]} 5. Nc3 {[%clk
0:02:50.6]} 5... e6 {[%clk 0:03:00]} 6. Bg5 {[%clk 0:02:50.6]} 6... Bb4 {[%clk
0:02:56.6]} 7. Nf3 {[%clk 0:02:50.5]} 7... O-O {[%clk 0:02:56.4]} 8. Bd3 {[%clk
0:02:42.2]} 8... dxc4 {[%clk 0:02:56.2]} 9. Bxc4 {[%clk 0:02:42.6]} 9... Nbd7
{[%clk 0:02:55.1]} 10. O-O {[%clk 0:02:42.9]} 10... h6 {[%clk 0:02:55.2]} 11.
Bh4 {[%clk 0:02:42.5]} 11... Qa5 {[%clk 0:02:55.2]} 12. Rc1 {[%clk 0:02:40.8]}
12... Bxc3 {[%clk 0:02:54.3]} 13. bxc3 {[%clk 0:02:40.5]} 13... b6 {[%clk
0:02:54.3]} 14. Bd3 {[%clk 0:02:39.3]} 14... Bb7 {[%clk 0:02:51.4]} 15. Re1
{[%clk 0:02:38.4]} 15... Rac8 {[%clk 0:02:40.7]} 16. Ne5 {[%clk 0:02:37.6]}
16... Rxc3 {[%clk 0:02:34.4]} 17. Rxc3 {[%clk 0:02:36.9]} 17... Qxc3 {[%clk
0:02:33.8]} 18. Re3 {[%clk 0:02:37.8]} 18... Qc7 {[%clk 0:02:12.1]} 19. Rg3
{[%clk 0:02:34.6]} 19... Rc8 {[%clk 0:02:05.4]} 20. f4 {[%clk 0:02:31.4]} 20...
Qc1 {[%clk 0:02:03.6]} 21. Qxc1 {[%clk 0:02:31.1]} 21... Rxc1+ {[%clk
0:02:03.3]} 22. Kf2 {[%clk 0:02:32]} 22... Nxe5 {[%clk 0:01:56]} 23. dxe5 {[%clk
0:02:28]} 23... Ne4+ {[%clk 0:01:53.8]} 24. Bxe4 {[%clk 0:02:26.1]} 24... Bxe4
{[%clk 0:01:53.8]} 25. Ra3 {[%clk 0:02:25.1]} 25... Bd5 {[%clk 0:01:31.7]} 26.
Rxa7 {[%clk 0:02:24.3]} 26... Rc2+ {[%clk 0:01:31.7]} 27. Ke3 {[%clk 0:02:23.2]}
27... Rxg2 {[%clk 0:01:31.5]} 0-1

[Event "*** Titled Tuesday Blitz"]
[Site "Chess.com"]
[Date "2020.04.14"]
[Round "4"]
[White "algatar2020"]
[Black "Teidi96"]
[Result "1-0"]
[WhiteElo "1878"]
[BlackElo "2184"]
[TimeControl "180+1"]
[EndTime "10:36:22 PDT"]
[Termination "algatar2020 won by resignation"]

1. d4 {[%clk 0:03:00.7]} 1... Nf6 {[%clk 0:02:59.5]} 2. Bf4 {[%clk 0:02:58.8]}
2... g6 {[%clk 0:02:58]} 3. Nc3 {[%clk 0:02:59]} 3... d5 {[%clk 0:02:57]} 4. e3
{[%clk 0:02:59.1]} 4... c6 {[%clk 0:02:57.4]} 5. h4 {[%clk 0:02:58.8]} 5... h5
{[%clk 0:02:54.6]} 6. Nf3 {[%clk 0:02:58.4]} 6... Bg7 {[%clk 0:02:54.9]} 7. Ng5
{[%clk 0:02:58.4]} 7... O-O {[%clk 0:02:54.7]} 8. Be2 {[%clk 0:02:58.3]} 8...
Nbd7 {[%clk 0:02:53.9]} 9. g4 {[%clk 0:02:52]} 9... hxg4 {[%clk 0:02:46.2]} 10.
h5 {[%clk 0:02:30.6]} 10... gxh5 {[%clk 0:02:42.7]} 11. Qd3 {[%clk 0:02:30]}
11... Re8 {[%clk 0:02:25.6]} 12. Rxh5 {[%clk 0:02:27.1]} 12... e5 {[%clk
0:02:25.6]} 13. dxe5 {[%clk 0:02:11.7]} 13... Nxe5 {[%clk 0:02:26.2]} 14. Bxe5
{[%clk 0:02:11.6]} 14... Rxe5 {[%clk 0:02:26.9]} 15. Nxf7 {[%clk 0:02:11.5]}
15... Kxf7 {[%clk 0:02:02.9]} 16. Rxe5 {[%clk 0:02:11.2]} 16... Ne4 {[%clk
0:01:25]} 17. Rxe4 {[%clk 0:02:09.4]} 17... Bf5 {[%clk 0:00:54.7]} 18. Rf4
{[%clk 0:02:09.4]} 1-0

[Event "*** Titled Tuesday Blitz"]
[Site "Chess.com"]
[Date "2020.04.14"]
[Round "4"]
[White "NewBornNow"]
[Black "Gabix_94"]
[Result "0-1"]
[WhiteElo "2654"]
[BlackElo "2862"]
[TimeControl "180+1"]
[EndTime "10:36:28 PDT"]
[Termination "Gabix_94 won by resignation"]

1. e4 {[%clk 0:03:00.7]} 1... e5 {[%clk 0:02:57.3]} 2. Nf3 {[%clk 0:02:59.8]}
2... Nc6 {[%clk 0:02:57.9]} 3. Bc4 {[%clk 0:02:58.9]} 3... Nf6 {[%clk
0:02:57.4]} 4. d3 {[%clk 0:02:58.6]} 4... Bc5 {[%clk 0:02:57.1]} 5. c3 {[%clk
0:02:55.8]} 5... d6 {[%clk 0:02:56.6]} 6. Nbd2 {[%clk 0:02:55.3]} 6... a5 {[%clk
0:02:55]} 7. Nf1 {[%clk 0:02:49.5]} 7... d5 {[%clk 0:02:44.1]} 8. exd5 {[%clk
0:02:48.5]} 8... Nxd5 {[%clk 0:02:45]} 9. Ng3 {[%clk 0:02:48.2]} 9... O-O {[%clk
0:02:43.2]} 10. O-O {[%clk 0:02:47.8]} 10... Bb6 {[%clk 0:02:40.8]} 11. Re1
{[%clk 0:02:46.9]} 11... Re8 {[%clk 0:02:33.9]} 12. d4 {[%clk 0:02:45.4]} 12...
Be6 {[%clk 0:02:24.2]} 13. Bxd5 {[%clk 0:02:20.4]} 13... Bxd5 {[%clk 0:02:16.8]}
14. Nxe5 {[%clk 0:02:18.3]} 14... Nxe5 {[%clk 0:02:15]} 15. dxe5 {[%clk
0:02:17.8]} 15... c6 {[%clk 0:02:11.3]} 16. Qg4 {[%clk 0:02:10.4]} 16... Re6
{[%clk 0:02:06.2]} 17. Be3 {[%clk 0:02:03]} 17... Rg6 {[%clk 0:01:53.9]} 18.
Bxb6 {[%clk 0:01:45.4]} 18... Qxb6 {[%clk 0:01:54.8]} 19. Qe2 {[%clk 0:01:45.1]}
19... Re8 {[%clk 0:01:52.3]} 20. c4 {[%clk 0:01:43.8]} 20... Be6 {[%clk
0:01:49.3]} 21. h3 {[%clk 0:01:34.8]} 21... Rxg3 {[%clk 0:01:41.3]} 0-1

[Event "*** Titled Tuesday Blitz"]
[Site "Chess.com"]
[Date "2020.04.14"]
[Round "4"]
[White "kasparicy"]
[Black "JoakimVonAnd"]
[Result "1-0"]
[WhiteElo "2333"]
[BlackElo "2484"]
[TimeControl "180+1"]
[EndTime "10:36:46 PDT"]
[Termination "kasparicy won by checkmate"]

1. e4 {[%clk 0:03:00.8]} 1... c6 {[%clk 0:02:59.4]} 2. d4 {[%clk 0:02:59]} 2...
d5 {[%clk 0:03:00.3]} 3. f3 {[%clk 0:02:59.9]} 3... e6 {[%clk 0:02:59.3]} 4. Nc3
{[%clk 0:02:59.3]} 4... Nf6 {[%clk 0:02:59]} 5. e5 {[%clk 0:02:55.3]} 5... Nfd7
{[%clk 0:02:58.2]} 6. f4 {[%clk 0:02:55.9]} 6... c5 {[%clk 0:02:56.5]} 7. Nf3
{[%clk 0:02:56.4]} 7... Nc6 {[%clk 0:02:51.2]} 8. Be3 {[%clk 0:02:56]} 8... cxd4
{[%clk 0:02:48.1]} 9. Nxd4 {[%clk 0:02:56.9]} 9... Bc5 {[%clk 0:02:48]} 10. Bb5
{[%clk 0:02:39.5]} 10... Nxd4 {[%clk 0:02:38]} 11. Bxd4 {[%clk 0:02:38.5]} 11...
Qb6 {[%clk 0:02:35.9]} 12. Bxc5 {[%clk 0:02:28.1]} 12... Qxc5 {[%clk 0:02:33.8]}
13. Qe2 {[%clk 0:02:21.9]} 13... a6 {[%clk 0:02:31.9]} 14. Bd3 {[%clk
0:02:19.6]} 14... b5 {[%clk 0:02:27.1]} 15. a4 {[%clk 0:02:06.6]} 15... b4
{[%clk 0:02:25]} 16. Nd1 {[%clk 0:02:06.8]} 16... a5 {[%clk 0:02:18.7]} 17. Nf2
{[%clk 0:01:53.6]} 17... O-O {[%clk 0:02:16.2]} 18. O-O {[%clk 0:01:50.9]} 18...
Qb6 {[%clk 0:02:04]} 19. Kh1 {[%clk 0:01:49.4]} 19... Ba6 {[%clk 0:02:03.8]} 20.
Nh3 {[%clk 0:01:47.8]} 20... Nc5 {[%clk 0:02:02.1]} 21. Bxh7+ {[%clk 0:01:45.5]}
21... Kxh7 {[%clk 0:01:29.9]} 22. Qh5+ {[%clk 0:01:42.8]} 22... Kg8 {[%clk
0:01:30.2]} 23. Ng5 {[%clk 0:01:43.7]} 23... Rfb8 {[%clk 0:01:22.3]} 24. Qxf7+
{[%clk 0:01:41.8]} 24... Kh8 {[%clk 0:01:21.7]} 25. Rf3 {[%clk 0:01:39]} 25...
Rb7 {[%clk 0:01:12.8]} 26. Rh3# {[%clk 0:01:37.5]} 1-0

[Event "*** Titled Tuesday Blitz"]
[Site "Chess.com"]
[Date "2020.04.14"]
[Round "4"]
[White "I_like_Kasparov"]
[Black "Haykoooo0o"]
[Result "1-0"]
[WhiteElo "2369"]
[BlackElo "2593"]
[TimeControl "180+1"]
[EndTime "10:36:51 PDT"]
[Termination "I_like_Kasparov won by resignation"]

1. e4 {[%clk 0:03:00.9]} 1... e5 {[%clk 0:02:57.5]} 2. Nf3 {[%clk 0:03:00.7]}
2... Nc6 {[%clk 0:02:56.5]} 3. Nc3 {[%clk 0:03:01.6]} 3... Nf6 {[%clk
0:02:56.2]} 4. d4 {[%clk 0:03:02.1]} 4... exd4 {[%clk 0:02:56.3]} 5. Nxd4 {[%clk
0:03:03]} 5... Bb4 {[%clk 0:02:56.8]} 6. Nxc6 {[%clk 0:03:03.6]} 6... bxc6
{[%clk 0:02:57.7]} 7. Bd3 {[%clk 0:03:04.3]} 7... d5 {[%clk 0:02:57.5]} 8. exd5
{[%clk 0:03:05.2]} 8... O-O {[%clk 0:02:57.2]} 9. O-O {[%clk 0:03:05.1]} 9...
Bg4 {[%clk 0:02:57.4]} 10. f3 {[%clk 0:03:04.5]} 10... Bh5 {[%clk 0:02:57.8]}
11. dxc6 {[%clk 0:03:04.3]} 11... Qd4+ {[%clk 0:02:58.7]} 12. Kh1 {[%clk
0:03:04.9]} 12... Bxc3 {[%clk 0:02:59.4]} 13. bxc3 {[%clk 0:03:05.8]} 13... Qxc3
{[%clk 0:03:00.3]} 14. Bf4 {[%clk 0:03:06.4]} 14... Qxc6 {[%clk 0:02:56.7]} 15.
Be5 {[%clk 0:03:02.8]} 15... Bg6 {[%clk 0:02:56.2]} 16. Bxf6 {[%clk 0:02:54.4]}
16... Qxf6 {[%clk 0:02:55.4]} 17. Bxg6 {[%clk 0:02:55.3]} 17... hxg6 {[%clk
0:02:56.3]} 18. Qd3 {[%clk 0:02:54.3]} 18... Rad8 {[%clk 0:02:52.4]} 19. Qc4
{[%clk 0:02:54.2]} 19... Rd2 {[%clk 0:02:49.4]} 20. Qxc7 {[%clk 0:02:49.1]}
20... Qg5 {[%clk 0:02:49.2]} 21. Rg1 {[%clk 0:02:43.1]} 21... a5 {[%clk
0:02:49]} 22. c4 {[%clk 0:02:42.7]} 22... Re8 {[%clk 0:02:48.3]} 23. c5 {[%clk
0:02:33.9]} 23... Kh7 {[%clk 0:02:44]} 24. c6 {[%clk 0:02:24.9]} 24... Ree2
{[%clk 0:02:43.7]} 25. Qg3 {[%clk 0:02:24.8]} 25... Qc5 {[%clk 0:02:28.2]} 26.
c7 {[%clk 0:02:06]} 26... Rc2 {[%clk 0:02:12]} 27. Qh3+ {[%clk 0:02:05.5]} 27...
Kg8 {[%clk 0:02:11.4]} 28. Qc8+ {[%clk 0:02:05.2]} 28... Kh7 {[%clk 0:02:11.4]}
29. Qh3+ {[%clk 0:02:05.3]} 29... Kg8 {[%clk 0:02:06.2]} 30. Qc8+ {[%clk
0:01:30.8]} 30... Qf8 {[%clk 0:02:06]} 31. Qxf8+ {[%clk 0:01:30.3]} 31... Kxf8
{[%clk 0:02:06.6]} 32. Rac1 {[%clk 0:01:30.5]} 32... Ke7 {[%clk 0:02:03.1]} 33.
c8=Q {[%clk 0:01:28.6]} 33... Rxc8 {[%clk 0:02:01.4]} 34. Rxc8 {[%clk
0:01:29.5]} 34... Rxa2 {[%clk 0:02:02.1]} 35. Ra8 {[%clk 0:01:29.1]} 35... a4
{[%clk 0:02:01.9]} 36. Ra7+ {[%clk 0:01:29.5]} 36... Kf6 {[%clk 0:02:01.9]} 37.
Re1 {[%clk 0:01:28.1]} 37... a3 {[%clk 0:02:02.4]} 38. h3 {[%clk 0:01:28.6]} 1-0

[Event "*** Titled Tuesday Blitz"]
[Site "Chess.com"]
[Date "2020.04.14"]
[Round "4"]
[White "Triumphmate"]
[Black "Eltaj_Safarli"]
[Result "0-1"]
[WhiteElo "2596"]
[BlackElo "3054"]
[TimeControl "180+1"]
[EndTime "10:36:54 PDT"]
[Termination "Eltaj_Safarli won on time"]

1. e4 {[%clk 0:01:31.1]} 1... e5 {[%clk 0:02:58.5]} 2. Nf3 {[%clk 0:01:32]} 2...
Nc6 {[%clk 0:02:58.7]} 3. Nc3 {[%clk 0:01:25.2]} 3... Nf6 {[%clk 0:02:58.3]} 4.
Bb5 {[%clk 0:01:26.1]} 4... Bb4 {[%clk 0:02:55.6]} 5. O-O {[%clk 0:00:54.6]}
5... O-O {[%clk 0:02:55.2]} 6. d3 {[%clk 0:00:53]} 6... d6 {[%clk 0:02:55.5]} 7.
Bg5 {[%clk 0:00:43.7]} 7... Bxc3 {[%clk 0:02:55.2]} 8. bxc3 {[%clk 0:00:44.6]}
8... Qe7 {[%clk 0:02:55.8]} 9. Re1 {[%clk 0:00:43.8]} 9... Nd8 {[%clk
0:02:55.6]} 10. d4 {[%clk 0:00:35.8]} 10... Ne6 {[%clk 0:02:55.5]} 11. Bd2
{[%clk 0:00:29.6]} 11... c6 {[%clk 0:02:46.3]} 12. Bd3 {[%clk 0:00:29.2]} 12...
Qc7 {[%clk 0:02:43.1]} 13. h3 {[%clk 0:00:25]} 13... h6 {[%clk 0:02:42.5]} 14.
g4 {[%clk 0:00:17.1]} 14... Nh7 {[%clk 0:02:30.9]} 15. Nh4 {[%clk 0:00:13.5]}
15... Nhg5 {[%clk 0:02:28.5]} 16. Nf5 {[%clk 0:00:12.9]} 16... Nxh3+ {[%clk
0:02:26.7]} 17. Kh2 {[%clk 0:00:10.1]} 17... Nhf4 {[%clk 0:02:23.3]} 0-1

[Event "*** Titled Tuesday Blitz"]
[Site "Chess.com"]
[Date "2020.04.14"]
[Round "4"]
[White "NiranjanNavalgund"]
[Black "jacky72"]
[Result "0-1"]
[WhiteElo "2424"]
[BlackElo "2689"]
[TimeControl "180+1"]
[EndTime "10:36:56 PDT"]
[Termination "jacky72 won by resignation"]

1. d4 {[%clk 0:03:00.9]} 1... Nf6 {[%clk 0:02:59.7]} 2. c4 {[%clk 0:02:59]} 2...
c6 {[%clk 0:03:00.1]} 3. Nf3 {[%clk 0:02:57.5]} 3... d5 {[%clk 0:03:01]} 4. g3
{[%clk 0:02:58.4]} 4... Bf5 {[%clk 0:02:58.4]} 5. Bg2 {[%clk 0:02:58.1]} 5... e6
{[%clk 0:02:57.5]} 6. Nc3 {[%clk 0:02:58.1]} 6... Nbd7 {[%clk 0:02:57.8]} 7. Nh4
{[%clk 0:02:58]} 7... Be4 {[%clk 0:02:54.3]} 8. f3 {[%clk 0:02:57.5]} 8... Bg6
{[%clk 0:02:54.1]} 9. Nxg6 {[%clk 0:02:57]} 9... hxg6 {[%clk 0:02:55]} 10. Qb3
{[%clk 0:02:56.5]} 10... Qb6 {[%clk 0:02:54.5]} 11. c5 {[%clk 0:02:54.1]} 11...
Qxb3 {[%clk 0:02:53.8]} 12. axb3 {[%clk 0:02:55]} 12... a6 {[%clk 0:02:51.1]}
13. b4 {[%clk 0:02:55.2]} 13... Rd8 {[%clk 0:02:49.5]} 14. e4 {[%clk 0:02:46.5]}
14... e5 {[%clk 0:02:45.8]} 15. exd5 {[%clk 0:02:39.3]} 15... exd4 {[%clk
0:02:43.9]} 16. dxc6 {[%clk 0:02:39.6]} 16... bxc6 {[%clk 0:02:38.6]} 17. Ne2
{[%clk 0:02:39.5]} 17... d3 {[%clk 0:02:32.9]} 18. Nf4 {[%clk 0:02:38.1]} 18...
Nb8 {[%clk 0:02:21.5]} 19. Ra3 {[%clk 0:02:30.4]} 19... Nd5 {[%clk 0:02:11.5]}
20. Nxd3 {[%clk 0:02:25.7]} 20... Be7 {[%clk 0:02:10.3]} 21. O-O {[%clk
0:02:22.4]} 21... O-O {[%clk 0:02:07.8]} 22. Re1 {[%clk 0:02:13.2]} 22... Nxb4
{[%clk 0:02:06.9]} 23. Rxe7 {[%clk 0:02:11.3]} 23... Nxd3 {[%clk 0:02:00.2]} 24.
Be3 {[%clk 0:02:10.3]} 24... Nxb2 {[%clk 0:01:59.5]} 25. Rb3 {[%clk 0:01:55.5]}
25... Nc4 {[%clk 0:01:52.5]} 26. Bf4 {[%clk 0:01:55.3]} 26... a5 {[%clk
0:01:48.4]} 27. Bf1 {[%clk 0:01:51.1]} 27... Nd2 {[%clk 0:01:40.7]} 28. Rxb8
{[%clk 0:01:43.3]} 28... Nxf3+ {[%clk 0:01:39.3]} 29. Kf2 {[%clk 0:01:41.8]}
29... Rxb8 {[%clk 0:01:36.7]} 30. Bxb8 {[%clk 0:01:41.7]} 30... Rxb8 {[%clk
0:01:35.6]} 31. Kxf3 {[%clk 0:01:41]} 31... Rb3+ {[%clk 0:01:36.1]} 32. Ke4
{[%clk 0:01:36.7]} 32... Rb1 {[%clk 0:01:35.1]} 33. Bc4 {[%clk 0:01:33.9]} 33...
Re1+ {[%clk 0:01:33.9]} 34. Kd4 {[%clk 0:01:29.6]} 34... Rxe7 {[%clk 0:01:33.2]}
0-1

[Event "*** Titled Tuesday Blitz"]
[Site "Chess.com"]
[Date "2020.04.14"]
[Round "4"]
[White "11kevin"]
[Black "Revnov"]
[Result "0-1"]
[WhiteElo "2549"]
[BlackElo "2772"]
[TimeControl "180+1"]
[EndTime "10:36:59 PDT"]
[Termination "Revnov won by resignation"]

1. d4 {[%clk 0:03:00.9]} 1... e6 {[%clk 0:02:59]} 2. c4 {[%clk 0:02:59.4]} 2...
Bb4+ {[%clk 0:02:58.3]} 3. Bd2 {[%clk 0:02:58.8]} 3... a5 {[%clk 0:02:57.2]} 4.
g3 {[%clk 0:02:57.8]} 4... d6 {[%clk 0:02:53.4]} 5. Bg2 {[%clk 0:02:57.4]} 5...
e5 {[%clk 0:02:53.3]} 6. Nf3 {[%clk 0:02:50.4]} 6... Nc6 {[%clk 0:02:52]} 7. d5
{[%clk 0:02:49.8]} 7... Nce7 {[%clk 0:02:49.7]} 8. Nc3 {[%clk 0:02:44.8]} 8...
Nf6 {[%clk 0:02:49.4]} 9. O-O {[%clk 0:02:43.4]} 9... O-O {[%clk 0:02:49.2]} 10.
Nb5 {[%clk 0:02:37.5]} 10... Bc5 {[%clk 0:02:37.5]} 11. a3 {[%clk 0:02:18.3]}
11... a4 {[%clk 0:02:33.9]} 12. Bb4 {[%clk 0:02:17.9]} 12... Bb6 {[%clk
0:02:20.3]} 13. Nc3 {[%clk 0:02:16.8]} 13... Bd7 {[%clk 0:02:17.8]} 14. Nd2
{[%clk 0:02:13.4]} 14... Ng4 {[%clk 0:02:13.1]} 15. e3 {[%clk 0:02:13.1]} 15...
f5 {[%clk 0:02:10.8]} 16. h3 {[%clk 0:02:12.4]} 16... Nf6 {[%clk 0:02:07.4]} 17.
Kh2 {[%clk 0:02:09.8]} 17... Ng6 {[%clk 0:02:06.1]} 18. Nf3 {[%clk 0:02:00.8]}
18... Qe7 {[%clk 0:02:02.2]} 19. Rc1 {[%clk 0:01:59]} 19... h5 {[%clk
0:02:00.9]} 20. h4 {[%clk 0:01:54.2]} 20... Ng4+ {[%clk 0:01:59.2]} 21. Kg1
{[%clk 0:01:53.1]} 21... f4 {[%clk 0:01:54.5]} 22. exf4 {[%clk 0:01:37.3]} 22...
exf4 {[%clk 0:01:53.8]} 23. Nd4 {[%clk 0:01:12.8]} 23... fxg3 {[%clk 0:01:51]}
24. Qd3 {[%clk 0:01:08.1]} 24... gxf2+ {[%clk 0:01:38.7]} 25. Kh1 {[%clk
0:01:08.1]} 25... Bxd4 {[%clk 0:01:36.4]} 26. Qxd4 {[%clk 0:01:04.3]} 26...
Qxh4+ {[%clk 0:01:35.6]} 0-1